bitfinex/quotes_ETHUSD_20240827
["timestamp","ask_amount","ask_price","bid_price","bid_amount"]
[1724785677131,0.4963314,2591.4,2591.3,4.87608471]
[1724785677307,0.03685582,2591.4,2591.3,7.27278471]
[1724785677511,0.21171175,2591.4,2591.3,7.27278471]
[1724785677713,2.0,2592.1,2591.3,7.27278471]
[1724785678018,0.17485593,2592.0,2591.6,3.54767411]
[1724785678213,0.17485593,2592.0,2591.8,5.95167411]
[1724785678454,2.0,2592.4,2591.9,0.55]
[1724785678870,0.17485593,2592.3,2591.9,0.55]
[1724785679064,0.17485593,2592.3,2591.7,0.55]
[1724785679289,2.0,2592.4,2591.7,0.55]
[1724785679634,0.17485593,2592.3,2591.7,0.55]
[1724785679836,0.17485593,2592.3,2591.7,1.92200741]
[1724785680160,2.0,2592.4,2591.7,1.92200741]
[1724785680525,0.17485593,2592.3,2591.7,1.92200741]
[1724785680960,2.0,2592.4,2591.7,1.92200741]
[1724785681350,0.17485593,2592.3,2591.7,1.92200741]
[1724785681565,0.17485593,2592.3,2591.8,1.28396815]
[1724785681877,2.0,2592.4,2591.9,0.55]
[1724785682329,0.17485593,2592.3,2591.9,0.55]
[1724785682739,2.0,2592.4,2591.9,0.55]
[1724785683149,0.17485593,2592.3,2591.9,0.55]
[1724785683556,2.0,2592.4,2591.9,0.55]
[1724785683866,0.17485593,2592.3,2591.9,0.55]
[1724785684363,2.0,2592.4,2591.9,0.55]
[1724785684364,4.4957,2592.4,2591.9,0.55]
[1724785684568,2.0,2591.8,2591.6,7.37]
[1724785684729,2.0,2591.8,2591.2,2.4845]
[1724785684929,0.17794639,2591.7,2591.3,3.54767411]
[1724785685125,2.0,2591.8,2591.4,0.60321741]
[1724785686488,2.0,2591.8,2591.5,0.55]
[1724785686859,2.0,2591.8,2591.3,0.55]
[1724785694939,2.0,2591.8,2591.3,4.09767411]
[1724785695239,2.0,2591.8,2591.4,2.4528]
[1724785695539,2.0,2591.8,2591.5,0.55]
[1724785695757,2.0,2591.8,2591.6,0.30028]
[1724785695895,2.0,2591.8,2591.7,0.55]
[1724785697045,2.0,2592.1,2591.7,0.55]
[1724785697260,2.0,2592.1,2591.8,2.4528]
[1724785697414,0.17760065,2592.0,2591.9,0.55]
[1724785699010,0.17760065,2592.0,2591.7,0.55]
[1724785699205,0.17760065,2592.0,2591.8,0.330308]
[1724785699449,2.0,2592.1,2591.9,0.55]
[1724785703608,3.85,2592.9,2592.0,2.3167]
[1724785703609,2.0,2592.4,2592.0,2.3167]
[1724785703809,2.0,2592.4,2592.1,0.55]
[1724785704333,3.85,2592.9,2591.8,1.80715071]
[1724785704334,2.0,2592.1,2591.8,1.47684271]
[1724785704533,2.0,2592.1,2591.9,0.55]
[1724785707260,2.0,2592.1,2591.6,0.30028]
[1724785707576,2.0,2592.1,2591.7,0.55]
[1724785710534,2.3452,2592.0,2591.7,0.55]
[1724785710719,2.0,2591.8,2591.7,0.55]
[1724785710924,2.0,2591.8,2591.2,9.6262]
[1724785711124,2.0,2591.8,2591.3,1.59375917]
[1724785712200,2.0,2591.8,2591.2,9.6262]
[1724785713570,2.0,2591.8,2591.3,0.55]
[1724785717888,2.3452,2592.0,2591.3,0.55]
[1724785718127,0.17780165,2591.7,2591.3,0.55]
[1724785718313,2.3452,2592.0,2591.3,0.55]
[1724785718743,0.17780165,2591.9,2591.3,0.55]
[1724785718932,2.3452,2592.0,2591.3,1.56762]
[1724785719131,0.17780165,2591.8,2591.3,1.56762]
[1724785719343,2.0,2591.6,2591.3,1.56762]
[1724785720810,2.0,2591.6,2591.3,0.55]
[1724785721444,2.0,2591.9,2591.3,0.55]
[1724785721605,2.0,2591.9,2591.4,2.35267158]
[1724785721804,2.0,2591.9,2591.5,0.55]
[1724785722009,2.0,2591.9,2591.7,2.2755]
[1724785724706,2.0,2591.9,2591.6,0.64477385]
[1724785724989,2.0,2591.9,2591.7,0.55]
[1724785726797,2.0,2592.2,2591.7,0.62716106]
[1724785726969,2.0,2592.2,2591.8,0.07715662]
[1724785727174,2.0,2592.2,2591.8,0.55885636]
[1724785728962,2.0,2592.2,2591.9,0.55]
[1724785729162,2.0,2592.5,2592.0,0.07715059]
[1724785729359,2.0,2592.5,2592.1,0.55]
[1724785729563,2.0,2592.5,2592.2,0.07714447]
[1724785734934,2.0,2592.5,2592.1,0.55]
[1724785736098,2.0,2592.5,2592.1,2.02683865]
[1724785737301,2.0,2592.5,2592.1,0.55]
[1724785737500,2.0,2592.5,2592.1,2.02683865]
[1724785737737,2.0,2592.5,2592.2,0.20268387]
[1724785737930,2.0,2592.5,2592.3,0.55]
[1724785739620,2.0,2592.5,2592.4,1.47683865]
[1724785739952,2.17231347,2592.5,2592.4,1.47683865]
[1724785741528,0.17231347,2592.5,2592.4,4.55098169]
[1724785741733,2.0,2593.1,2592.5,2.447]
[1724785741958,2.0,2593.4,2593.1,2.447]
[1724785742279,2.0,2593.4,2593.3,1.47683865]
[1724785742462,2.0,2593.4,2593.3,1.87693408]
[1724785742627,2.0,2593.8,2593.3,2.42693408]
[1724785742962,2.0,2593.8,2593.7,1.47683865]
[1724785744078,2.0,2593.8,2593.6,1.47683865]
[1724785744276,2.0,2593.8,2593.5,2.447]
[1724785745186,2.0,2593.8,2593.5,5.98760652]
[1724785745382,2.0,2593.8,2593.5,6.68137671]
[1724785746573,2.0,2593.8,2593.5,3.14077019]
[1724785746904,2.0,2593.8,2593.5,2.447]
[1724785747866,2.0,2593.8,2593.4,0.55]
[1724785748782,2.0,2593.8,2593.5,0.07710509]
[1724785748983,2.0,2593.8,2593.5,3.61771161]
[1724785749186,0.16080601,2593.7,2593.5,3.61771161]
[1724785749388,2.0,2593.8,2593.4,0.55]
[1724785749587,0.16080601,2593.6,2593.4,0.87604954]
[1724785749822,2.0,2593.8,2593.4,0.95315489]
[1724785750091,2.0,2593.8,2593.5,3.54060652]
[1724785752076,2.0,2593.8,2593.6,2.4428]
[1724785752275,0.16080601,2593.7,2593.6,2.4428]
[1724785752480,2.0,2593.8,2593.6,3.13645614]
[1724785753005,0.16080601,2593.7,2593.4,3.27214954]
[1724785753207,2.0,2593.8,2593.2,2.3961]
[1724785753425,4.4322,2593.8,2593.2,2.3961]
[1724785753811,0.16279375,2593.7,2593.2,2.3961]
[1724785754009,2.0,2593.5,2592.8,2.3961]
[1724785754343,0.16279375,2593.4,2592.9,3.54060652]
[1724785754561,2.0,2593.5,2592.8,2.3961]
[1724785754706,2.0,2593.5,2592.8,2.93571]
[1724785755510,2.4798,2593.4,2592.8,2.93571]
[1724785755754,0.16272914,2593.3,2592.8,2.93571]
[1724785756107,2.4798,2593.4,2592.9,3.54060652]
[1724785758643,2.0,2593.4,2592.9,3.54060652]
[1724785759041,0.16272914,2593.3,2592.9,3.54060652]
[1724785765076,0.16272914,2593.3,2592.8,2.3961]
[1724785767672,0.16272914,2593.3,2592.9,3.54060652]
[1724785767875,0.16272914,2593.3,2592.9,4.13427717]
[1724785768447,2.0,2593.4,2592.9,4.13427717]
[1724785771060,2.0,2593.4,2592.9,0.59367065]
[1724785771192,2.0,2593.4,2592.8,2.3961]
[1724785773830,2.0,2593.4,2592.7,3.54060652]
[1724785774135,2.3944,2593.3,2592.8,0.55]
[1724785774902,2.3944,2593.3,2592.8,2.8455]
[1724785775105,2.0,2593.4,2592.9,0.63861065]
[1724785776253,2.0,2593.4,2593.0,3.54060652]
[1724785777340,2.0,2593.4,2593.1,2.2955]
[1724785777712,2.0,2593.4,2593.0,3.54060652]
[1724785778141,2.0,2593.4,2593.2,1.47565333]
[1724785778349,0.16261602,2593.3,2593.2,1.47565333]
[1724785779255,2.0,2593.4,2593.2,1.47565333]
[1724785782655,2.0,2593.7,2593.2,1.47565333]
[1724785782842,2.0,2593.7,2593.6,1.47565333]
[1724785784708,2.16264025,2593.7,2593.6,1.47565333]
[1724785785877,4.62594025,2593.7,2593.1,1.47565333]
[1724785786408,2.0,2593.3,2593.1,1.47565333]
[1724785786863,0.16303602,2593.2,2593.1,1.47565333]
[1724785787289,2.0,2593.3,2593.1,1.47565333]
[1724785787504,0.16303602,2593.2,2593.1,1.47565333]
[1724785787866,2.0,2593.3,2593.1,1.47565333]
[1724785788173,0.16303602,2593.2,2593.1,1.47565333]
[1724785788379,2.0,2593.3,2593.1,1.47565333]
[1724785788571,0.16303602,2593.2,2593.1,1.47565333]
[1724785788774,2.0,2593.3,2593.1,1.47565333]
[1724785789001,0.16303602,2593.2,2593.1,1.47565333]
[1724785789311,2.0,2593.3,2593.1,1.47565333]
[1724785789468,0.16303602,2593.2,2593.1,1.47565333]
[1724785789865,2.0,2593.3,2593.1,1.47565333]
[1724785790060,0.16303602,2593.2,2593.1,1.47565333]
[1724785790366,2.0,2593.3,2593.1,1.47565333]
[1724785790592,0.16303602,2593.2,2593.1,1.47565333]
[1724785790924,2.4633,2593.2,2592.6,2.2816]
[1724785791103,2.62633602,2593.2,2593.0,1.47565333]
[1724785791309,0.16303602,2593.2,2593.1,1.47565333]
[1724785791603,2.0,2593.3,2593.1,1.47565333]
[1724785791761,2.0,2593.3,2593.2,1.47565333]
[1724785793911,4.333,2593.3,2592.9,1.47565333]
[1724785794206,2.0,2593.0,2592.9,1.47565333]
[1724785799286,2.0,2593.0,2592.9,3.90175333]
[1724785799616,2.16293911,2593.0,2592.9,3.90175333]
[1724785799813,2.16293911,2593.0,2592.9,4.29192866]
[1724785800621,0.16293911,2593.0,2592.9,4.29192866]
[1724785800923,2.0,2593.3,2592.9,4.29192866]
[1724785801214,2.0,2593.3,2593.1,1.47565333]
[1724785801408,0.16265645,2593.2,2592.9,2.81627533]
[1724785801613,2.0,2593.3,2593.1,1.47565333]
[1724785801811,2.0,2593.3,2593.2,1.47565333]
[1724785802875,2.0,2593.3,2593.0,0.28162753]
[1724785802876,2.0,2593.3,2593.1,1.47565333]
[1724785803275,4.4909,2593.3,2592.9,1.47565333]
[1724785803528,2.0,2593.0,2592.7,2.4091]
[1724785803690,2.0,2593.0,2592.9,1.47565333]
[1724785803894,0.40374087,2593.7,2593.0,2.317]
[1724785803895,2.0,2593.4,2593.0,2.317]
[1724785804125,2.0,2593.4,2593.2,1.47565333]
[1724785807273,2.0,2593.4,2593.1,0.37926533]
[1724785807581,2.0,2593.4,2592.9,2.317]
[1724785807582,0.16264837,2593.3,2592.9,1.47565333]
[1724785808692,0.16264837,2593.3,2593.2,1.47565333]
[1724785808895,0.16264837,2593.3,2593.2,3.79265333]
[1724785809303,0.16264837,2593.3,2593.2,4.17963085]
[1724785809678,2.0,2593.4,2593.2,4.17963085]
[1724785809881,2.0,2593.4,2593.3,1.47565333]
[1724785810332,0.16259183,2593.4,2593.3,1.47565333]
[1724785810533,0.16259183,2593.4,2593.3,4.51356141]
[1724785810824,2.0,2594.0,2593.4,2.4108]
[1724785811048,2.0,2594.0,2593.8,1.47565333]
[1724785811244,0.16318137,2593.9,2593.7,1.47565333]
[1724785812101,0.16318137,2593.9,2593.6,1.47565333]
[1724785812302,0.16318137,2593.9,2593.7,1.47565333]
[1724785812819,0.16318137,2593.9,2593.6,1.47565333]
[1724785813013,0.16318137,2593.9,2593.5,1.47565333]
[1724785813418,0.16318137,2593.9,2593.4,3.88645333]
[1724785814225,0.16318137,2593.9,2593.4,1.47565333]
[1724785814534,2.0,2593.5,2593.4,1.47565333]
[1724785814730,2.0,2593.5,2593.2,3.87435333]
[1724785814891,2.16318137,2593.5,2593.3,1.47565333]
[1724785816090,2.16318137,2593.5,2593.4,1.47565333]
[1724785818787,2.16318137,2593.5,2593.3,1.71552333]
[1724785819619,2.16318137,2593.5,2593.4,1.47565333]
[1724785820025,2.16318137,2593.5,2593.3,1.71552333]
[1724785820501,2.16318137,2593.5,2593.4,1.47565333]
[1724785820703,2.16318137,2593.5,2593.4,1.88707566]
[1724785821027,2.0,2593.5,2593.4,4.29867566]
[1724785821229,2.0,2593.9,2593.4,4.29867566]
[1724785821532,2.0,2593.9,2593.8,3.88725333]
[1724785821719,2.0,2593.9,2593.7,1.47565333]
[1724785822735,2.0,2593.9,2593.8,1.47565333]
[1724785824091,2.0,2594.2,2593.9,2.4116]
[1724785824298,2.0,2594.5,2594.0,0.38872533]
[1724785824632,2.0,2594.5,2594.1,0.07708802]
[1724785824834,2.0,2594.5,2594.3,1.47565333]
[1724785825997,2.0,2594.5,2594.1,0.28774133]
[1724785828150,2.0,2594.5,2594.2,0.07708479]
[1724785828641,2.0,2594.5,2594.2,3.61559225]
[1724785829096,2.3561,2594.9,2594.2,3.61559225]
[1724785829303,2.3561,2594.9,2594.3,0.46741713]
[1724785829943,2.0,2594.7,2594.4,3.53850746]
[1724785830101,2.0,2594.7,2594.5,0.07708144]
[1724785830440,0.16381911,2594.6,2594.4,3.53850746]
[1724785831014,0.16381911,2594.6,2594.4,3.61558553]
[1724785831337,2.0,2594.7,2594.5,0.59079855]
[1724785831718,0.23520054,2594.6,2594.5,0.59079855]
[1724785832116,0.23520054,2594.6,2594.5,0.66787637]
[1724785832537,2.0,2594.7,2594.5,0.66787637]
[1724785835202,2.0,2594.7,2594.5,0.59079855]
[1724785835616,0.23532964,2594.6,2594.5,0.59079855]
[1724785835946,2.0,2594.7,2594.5,0.59079855]
[1724785838339,2.0,2595.1,2594.7,2.3666]
[1724785838653,0.23536999,2595.0,2594.7,2.44367164]
[1724785838957,2.0,2595.2,2594.7,2.3666]
[1724785839114,0.23536999,2594.9,2594.8,0.71734579]
[1724785839315,2.0,2595.2,2594.8,0.64028174]
[1724785839830,0.23536999,2595.1,2594.8,0.64028174]
[1724785843901,0.23536999,2595.1,2594.7,2.3666]
[1724785845866,2.0,2595.2,2594.7,2.3666]
[1724785848081,2.0,2595.2,2594.8,1.47370061]
[1724785848256,2.0,2595.2,2594.9,1.47370061]
[1724785848457,2.0,2595.2,2595.0,2.51626682]
[1724785848458,0.23585407,2595.1,2595.0,2.51626682]
[1724785848678,0.23585407,2595.1,2595.0,3.91290061]
[1724785848992,0.23585407,2595.1,2595.0,4.53996301]
[1724785849287,0.1245706,2595.3,2595.2,3.85326]
[1724785849603,2.0,2596.5,2595.6,2.4392]
[1724785849763,2.0,2596.5,2596.3,1.47370061]
[1724785849947,2.0,2596.5,2596.1,2.4392]
[1724785850148,2.0,2596.5,2596.2,0.67423051]
[1724785850591,2.0,2596.5,2596.1,2.4392]
[1724785850745,2.0,2596.5,2595.9,7.37]
[1724785850946,2.0,2596.5,2595.9,7.44702585]
[1724785851772,2.0,2596.5,2595.9,7.37]
[1724785852175,2.0,2596.5,2596.0,2.4338]
[1724785852359,2.0,2596.5,2596.1,0.98038]
[1724785854806,0.40337214,2597.4,2596.1,0.98038]
[1724785854807,2.0,2596.8,2596.1,0.98038]
[1724785854969,2.0,2596.8,2596.1,4.51322909]
[1724785855187,2.0,2596.8,2596.1,0.98038]
[1724785855516,2.0,2596.8,2596.2,0.726625]
[1724785855681,2.0,2596.8,2596.1,0.98038]
[1724785856437,2.0,2596.5,2596.1,0.98038]
[1724785856715,2.0,2596.5,2596.0,2.4338]
[1724785858589,2.0,2596.5,2595.9,7.37]
[1724785860083,2.0,2596.1,2595.9,7.37]
[1724785861291,2.0,2595.8,2595.3,19.79]
[1724785861510,2.0,2595.8,2595.4,2.10534483]
[1724785861801,2.0,2595.8,2594.9,7.38644909]
[1724785861802,2.0,2595.5,2594.8,2.3096]
[1724785862927,2.0,2595.5,2594.9,3.60990993]
[1724785863156,2.0,2595.5,2595.1,3.53284909]
[1724785863359,2.0,2595.5,2594.8,2.3096]
[1724785863682,2.0,2595.5,2594.9,1.32124491]
[1724785863822,4.4133,2595.5,2594.8,2.3096]
[1724785864450,2.0,2595.5,2594.8,5.84244909]
[1724785864844,2.0,2595.5,2594.8,2.3096]
[1724785865023,2.0,2595.5,2594.8,3.63084491]
[1724785867728,2.0,2595.5,2595.0,3.53284909]
[1724785869936,2.0,2595.5,2594.8,7.163694]
[1724785870223,2.0,2595.5,2594.9,0.55]
[1724785871270,2.0,2595.5,2594.8,7.163694]
[1724785871573,2.0,2595.5,2594.9,1.8775324]
[1724785871776,2.0,2595.5,2595.0,3.60990348]
[1724785872068,2.0,2595.5,2595.0,3.53284909]
[1724785872373,2.0,2595.5,2594.9,1.8775324]
[1724785873628,2.2927,2595.4,2594.9,1.8775324]
[1724785873975,2.2927,2595.4,2594.7,7.37]
[1724785879508,2.0,2595.5,2595.0,3.53284909]
[1724785879723,2.0,2595.8,2595.2,5.97004909]
[1724785880011,2.0,2595.8,2595.2,2.4372]
[1724785880809,2.0,2595.8,2595.3,0.07704634]
[1724785881408,2.0,2596.1,2595.3,0.07704634]
[1724785881566,2.0,2596.1,2595.3,0.72041588]
[1724785884208,2.0,2596.1,2595.3,0.64336954]
[1724785885126,2.0,2596.1,2595.4,5.82944909]
[1724785885518,2.0,2596.1,2595.4,2.2966]
[1724785888709,2.0,2596.4,2596.0,3.53284909]
[1724785888889,2.0,2596.9,2596.3,3.53284909]
[1724785889792,2.0,2596.9,2596.1,6.316634]
[1724785892020,2.0,2596.9,2596.1,2.78378491]
[1724785893124,2.0,2596.6,2596.1,2.4305]
[1724785893920,2.0,2596.9,2596.1,2.4305]
[1724785895511,2.0,2596.9,2596.1,2.37198938]
[1724785895710,2.0,2596.9,2596.1,3.69947323]
[1724785896833,0.40329265,2597.5,2596.5,3.53284909]
[1724785897132,0.20836448,2597.4,2596.5,3.53284909]
[1724785897423,0.20836448,2597.4,2596.5,7.38415909]
[1724785897587,2.3512,2597.3,2596.5,3.53284909]
[1724785897931,2.3512,2597.3,2596.6,0.35328491]
[1724785898085,0.20836448,2597.2,2596.6,0.35328491]
[1724785898513,0.20836448,2597.2,2596.6,2.61278491]
[1724785900724,2.20836448,2597.2,2596.3,2.4129]
[1724785901222,2.20836448,2597.2,2596.4,0.07701273]
[1724785901928,2.20836448,2597.2,2596.3,9.7829]
[1724785902246,2.0,2597.2,2596.3,9.7829]
[1724785902408,2.0,2597.2,2596.4,0.72620751]
[1724785905134,2.0,2597.2,2596.3,9.7829]
[1724785905862,2.4712,2596.8,2596.3,7.37]
[1724785905999,2.4712,2596.8,2596.0,22.2637]
[1724785906198,2.0,2596.9,2596.2,3.85175]
[1724785906435,2.0,2597.3,2596.5,2.4737]
[1724785906595,2.0,2597.3,2596.6,0.632517]
[1724785906795,2.0,2597.3,2596.5,2.4737]
[1724785907122,2.0,2597.3,2596.5,9.85785909]
[1724785907850,2.0,2597.3,2596.5,6.00654909]
[1724785909215,2.0,2597.3,2596.5,2.4737]
[1724785911426,2.40330671,2597.7,2596.9,3.53284909]
[1724785911694,2.0,2597.7,2597.0,0.07699095]
[1724785911855,2.0,2597.7,2597.0,1.79534195]
[1724785912053,2.0,2597.7,2597.0,1.718351]
[1724785916993,2.4675,2597.6,2596.8,9.7229]
[1724785917238,2.0,2597.4,2596.8,7.37]
[1724785917856,2.4675,2597.6,2596.8,7.37]
[1724785918909,4.4675,2597.6,2596.8,7.37]
[1724785919740,0.27396714,2597.8,2596.8,7.37]
[1724785922701,2.2989,2597.7,2596.8,7.37]
[1724785923518,4.2989,2597.7,2596.9,2.4866]
[1724785923827,0.20942301,2597.6,2596.9,2.4866]
[1724785924237,4.2989,2597.7,2596.9,2.4866]
[1724785924758,0.20942301,2597.6,2596.9,2.4866]
[1724785924950,4.2989,2597.7,2596.9,2.4866]
[1724785925109,0.20942301,2597.6,2596.9,2.4866]
[1724785925451,4.2989,2597.7,2596.9,2.4866]
[1724785925808,0.20942301,2597.6,2596.9,2.4866]
[1724785926220,4.2989,2597.7,2596.9,2.4866]
[1724785926683,0.20942301,2597.6,2596.9,2.4866]
[1724785927154,0.27396714,2597.8,2596.9,2.4866]
[1724785927350,0.20942301,2597.7,2596.9,2.4866]
[1724785927849,2.20942301,2597.7,2596.9,2.4866]
[1724785928052,2.88249848,2597.6,2596.8,7.37]
[1724785928273,2.3374,2597.3,2596.8,7.37]
[1724785928718,0.20925206,2597.2,2596.8,7.37]
[1724785928926,2.3374,2597.3,2596.8,7.37]
[1724785929127,0.20925206,2597.2,2596.8,7.37]
[1724785929328,2.3374,2597.3,2596.8,7.37]
[1724785929329,2.74077636,2597.3,2596.8,7.37]
[1724785929542,0.20925206,2597.2,2596.8,9.6813]
[1724785929850,0.40337636,2597.3,2596.8,9.6813]
[1724785930057,0.20925206,2597.1,2596.8,9.6813]
[1724785930225,2.0,2597.4,2596.8,2.3113]
[1724785931474,2.0,2597.4,2596.5,14.7707]
[1724785932970,2.3079,2597.3,2596.5,14.7707]
[1724785934648,0.40336413,2597.6,2596.5,14.7707]
[1724785934649,0.40336413,2597.6,2596.6,2.2753]
[1724785934985,0.20896706,2597.5,2596.7,0.612656]
[1724785935190,0.20896706,2597.5,2596.6,2.2753]
[1724785938782,0.20896706,2597.5,2596.7,2.32720832]
[1724785938993,0.20896706,2597.5,2596.9,2.2502]
[1724785942161,0.20896706,2597.5,2596.9,2.22094469]
[1724785942819,0.20896706,2597.5,2596.7,7.37]
[1724785942976,2.3993,2597.4,2596.7,7.37]
[1724785945209,2.3993,2597.4,2596.8,2.2502]
[1724785945363,2.3993,2597.4,2596.7,7.37]
[1724785945364,2.0,2597.3,2596.7,7.37]
[1724785945572,0.20885311,2597.2,2596.7,7.37]
[1724785946622,0.20885311,2597.2,2596.5,2.3915]
[1724785946786,0.20885311,2597.2,2596.6,0.07702112]
[1724785947124,0.20885311,2597.2,2596.7,2.3866]
[1724785947678,2.0,2597.6,2596.7,2.3866]
[1724785948222,0.2087391,2597.5,2596.7,2.3866]
[1724785948925,2.5655391,2597.5,2596.7,2.3866]
[1724785949125,2.5655391,2597.5,2596.7,2.62526]
[1724785949417,2.5655391,2597.5,2596.7,2.3866]
[1724785951875,2.3568,2597.5,2596.7,2.3866]
[1724785952800,0.2087391,2597.4,2596.7,2.3866]
[1724785953525,0.2087391,2597.4,2596.7,2.46361168]
[1724785954130,0.2087391,2597.4,2596.7,2.3866]
[1724785954279,0.2087391,2597.4,2596.7,3.36226]
[1724785954638,0.2087391,2597.3,2596.7,3.36226]
[1724785955122,4.2903,2597.6,2596.7,3.36226]
[1724785955482,0.2087391,2597.2,2596.7,3.36226]
[1724785955827,4.2903,2597.6,2596.7,3.36226]
[1724785956334,0.2087391,2597.5,2596.8,2.312]
[1724785956624,4.89558315,2597.9,2596.8,2.312]
[1724785956826,4.4923706,2597.9,2596.8,2.312]
[1724785957127,0.2087961,2597.8,2596.9,2.38899718]
[1724785957698,0.2087961,2597.8,2596.9,2.312]
[1724785958034,0.2087961,2597.8,2597.1,2.312]
[1724785958182,0.2087961,2597.8,2597.2,0.31589684]
[1724785958386,2.1245706,2597.9,2597.2,0.31589684]
[1724785958681,0.20918693,2597.8,2597.3,2.312]
[1724785960429,0.20918693,2597.8,2597.4,2.38899715]
[1724785961518,0.20918693,2597.8,2597.5,0.07698629]
[1724785961932,0.20918693,2597.8,2597.5,0.31588492]
[1724785962094,0.20918693,2597.8,2597.6,2.312]
[1724785962486,0.20918693,2597.8,2597.7,0.07698633]
[1724785962727,0.20918693,2597.8,2597.7,2.4153]
[1724785963108,0.1245706,2597.9,2597.7,2.4153]
[1724785963403,0.20964282,2597.8,2597.7,2.4153]
[1724785963600,0.1245706,2597.9,2597.7,2.65683]
[1724785963890,0.20964282,2597.8,2597.7,2.65683]
[1724785964449,0.1245706,2597.9,2597.7,2.65683]
[1724785964786,0.20964282,2597.8,2597.7,2.65683]
[1724785965043,0.1245706,2597.9,2597.7,2.65683]
[1724785965206,0.1233352,2597.9,2597.8,0.265683]
[1724785965527,2.33297802,2597.9,2597.1,2.327]
[1724785965710,2.1233352,2597.9,2597.1,2.327]
[1724785965911,0.21035088,2597.8,2597.1,2.327]
[1724785966113,0.21035088,2597.8,2597.1,2.5597]
[1724785966425,0.21035088,2597.8,2597.1,2.327]
[1724785967232,2.0,2597.6,2597.1,2.327]
[1724785967601,0.21000092,2597.5,2597.1,2.327]
[1724785967956,2.56630092,2597.5,2596.8,2.327]
[1724785973455,2.96963973,2597.5,2596.8,2.327]
[1724785975570,0.61333973,2597.5,2596.8,2.327]
[1724785976570,0.61333973,2597.5,2596.9,0.07700613]
[1724785976774,0.40333881,2597.5,2597.0,2.272]
[1724785977078,2.1233352,2597.9,2597.1,0.07700218]
[1724785977244,2.1233352,2597.9,2597.2,2.272]
[1724785977439,0.20898338,2597.8,2597.2,2.272]
[1724785981656,0.20898338,2597.8,2597.3,0.07699639]
[1724785981984,0.20898338,2597.8,2597.4,2.2708]
[1724785985087,0.20898338,2597.8,2597.4,2.2708]
[1724785993282,0.20898338,2597.8,2597.0,4.57]
[1724785993283,0.20898338,2597.8,2597.7,2.2675]
[1724785993490,0.1233352,2597.9,2597.7,2.49425]
[1724785995191,0.20030616,2597.8,2597.7,2.49425]
[1724785995415,0.1233352,2597.9,2597.7,2.49425]
[1724785996771,0.20030616,2597.8,2597.7,2.49425]
[1724785998118,0.20030616,2597.8,2597.7,2.2675]
[1724786001213,0.20030616,2597.8,2597.5,2.7644]
[1724786003119,0.20030616,2597.8,2597.7,2.2853]
[1724786005757,0.20030616,2597.8,2597.6,0.505]
[1724786007906,0.20030616,2597.8,2597.7,2.3956]
[1724786008106,0.20030616,2597.8,2597.7,2.68566]
[1724786008339,0.1233352,2597.9,2597.7,2.68566]
[1724786008735,0.20093485,2597.8,2597.7,2.68566]
[1724786009443,0.20093485,2597.8,2597.6,0.505]
[1724786013540,0.20093485,2597.8,2597.7,2.2621]
[1724786014922,0.20093485,2597.8,2597.6,0.505]
[1724786025264,0.20093485,2597.8,2597.7,2.4379]
[1724786026144,0.20093485,2597.8,2597.7,2.51488765]
[1724786026345,0.20093485,2597.8,2597.7,2.81687642]
[1724786026841,0.20093485,2597.8,2597.7,3.32187642]
[1724786027257,0.20093485,2597.8,2597.7,3.24488877]
[1724786030177,0.20093485,2597.8,2597.7,0.505]
[1724786034980,0.20093485,2597.8,2597.7,2.9713]
[1724786036368,0.20093485,2597.8,2597.7,4.44225857]
[1724786037779,0.20093485,2597.8,2597.7,2.9713]
[1724786038084,0.1233352,2597.9,2597.7,2.9713]
[1724786038297,0.1233352,2597.9,2597.8,2.64623]
[1724786041385,0.1233352,2597.9,2597.8,3.15123]
[1724786042192,0.32418024,2597.9,2597.8,3.15123]
[1724786042399,0.1233352,2597.9,2597.8,3.15123]
[1724786053343,0.1233352,2597.9,2597.8,4.62218857]
[1724786054260,0.1233352,2597.9,2597.8,3.15123]
[1724786055262,0.1233352,2597.9,2597.8,4.62218857]
[1724786055964,0.1233352,2597.9,2597.8,3.15123]
[1724786072544,0.1233352,2597.9,2597.8,8.47159857]
[1724786073355,0.1233352,2597.9,2597.8,4.62218857]
[1724786076867,0.1233352,2597.9,2597.8,4.69915679]
[1724786079459,0.1233352,2597.9,2597.8,8.54856679]
[1724786079664,0.1233352,2597.9,2597.8,5.08575679]
[1724786081878,0.1233352,2597.9,2597.8,8.93516679]
[1724786085188,0.1233352,2597.9,2597.8,7.07760822]
[1724786085363,0.1233352,2597.9,2597.8,8.54856679]
[1724786086498,0.1233352,2597.9,2597.8,3.22819822]
[1724786086655,0.1233352,2597.9,2597.8,8.54856679]
[1724786086857,0.1233352,2597.9,2597.8,4.69915679]
[1724786087258,0.1233352,2597.9,2597.8,8.54856679]
[1724786092908,0.1233352,2597.9,2597.8,8.53393913]
[1724786099751,0.1233352,2597.9,2597.8,8.92053913]
[1724786100538,0.1233352,2597.9,2597.8,12.76994913]
[1724786103230,0.1233352,2597.9,2597.8,17.16935913]
[1724786103433,0.1233352,2597.9,2597.8,20.16935913]
[1724786103931,0.015,2599.5,2597.8,20.16935913]
[1724786103932,2.3276,2599.3,2598.9,1.47095857]
[1724786104132,2.3426,2599.5,2599.0,1.54789847]
[1724786104351,2.3426,2599.5,2598.9,3.94585857]
[1724786104563,2.3426,2599.5,2598.9,2.4749]
[1724786104692,0.20193056,2599.4,2598.9,2.4749]
[1724786104893,2.3426,2599.5,2599.0,0.07693926]
[1724786105128,0.20193056,2599.4,2598.6,2.4903]
[1724786105332,2.2661,2599.3,2598.4,2.4903]
[1724786105533,2.2661,2599.1,2598.0,7.37]